fUST/lending_fUST_20240413
["ID","MTS","AMOUNT","RATE_DAILY","PERIOD"]
[322451121,1713017443294,-1057.74,0.00033424,7]
[322451122,1713017443305,-3316.03,0.00033424,7]
[322451123,1713017443314,-500.0,0.00033424,7]
[322451124,1713017443323,-2437.75,0.00033424,7]
[322451125,1713017443332,-500.0,0.00033424,7]
[322451126,1713017443343,-500.0,0.00033424,7]
[322451127,1713017443352,-294.73660427,0.00033424,7]
[322451128,1713017443362,-553.02,0.00033424,7]
[322451129,1713017443372,-500.0,0.00033424,7]
[322451130,1713017443382,-500.0,0.00033424,7]
[322451131,1713017443391,-1110.7,0.00033424,7]
[322451132,1713017443403,-500.0,0.00033424,7]
[322451133,1713017443415,-500.0,0.00033424,7]
[322451134,1713017443424,-826.99,0.00033424,7]
[322451135,1713017443434,-500.0,0.00033424,7]
[322451136,1713017443444,-1763.8,0.00033424,7]
[322451137,1713017443453,-938.18,0.00033424,7]
[322451138,1713017443463,-500.0,0.00033424,7]
[322451139,1713017443473,-2856.21,0.00033424,7]
[322451140,1713017443484,-500.0,0.00033424,7]
[322451141,1713017443494,-500.0,0.00033424,7]
[322451142,1713017443503,-573.05,0.00033424,7]
[322451143,1713017443512,-4799.79,0.00033424,7]
[322451144,1713017443521,-1091.95,0.00033424,7]
[322451145,1713017443530,-500.0,0.00033424,7]
[322451146,1713017443539,-888.36,0.00033424,7]
[322451147,1713017443548,-569.09,0.00033424,7]
[322451148,1713017443557,-508.9012167,0.00033424,7]
[322451149,1713017443566,-561.31233867,0.00033424,7]
[322451150,1713017443575,-500.0,0.00033424,7]
[322451151,1713017443584,-500.0,0.00033424,7]
[322451152,1713017443593,-1906.11,0.00033424,7]
[322451153,1713017443602,-500.0,0.00033424,7]
[322451154,1713017443611,-500.0,0.00033424,7]
[322451155,1713017443619,-680.44,0.00033424,7]
[322451156,1713017443628,-500.0,0.00033424,7]
[322451157,1713017443637,-516.88435255,0.00033424,7]
[322451158,1713017443646,-624.86,0.00033424,7]
[322451159,1713017443654,-2166.57,0.00033424,7]
[322451160,1713017443663,-746.57,0.00033424,7]
[322451161,1713017443672,-845.28,0.00033424,7]
[322451162,1713017443680,-1895.65,0.00033424,7]
[322451163,1713017443689,-2038.57,0.00033424,7]
[322451164,1713017443698,-837.75,0.00033424,7]
[322451165,1713017443707,-500.0,0.00033424,7]
[322451166,1713017443716,-680.09,0.00033424,7]
[322451167,1713017443726,-453.65434106,0.00033424,7]
[322451168,1713017443734,-500.0,0.00033424,7]
[322451169,1713017443743,-500.0,0.00033424,7]
[322451170,1713017443753,-1656.21,0.00033424,7]
[322451171,1713017443763,-500.0,0.00033424,7]
[322451172,1713017443772,-517.41354742,0.00033424,7]
[322451173,1713017443781,-8395.95,0.00033424,7]
[322451174,1713017443790,-1046.63,0.00033424,7]
[322451175,1713017443799,-500.0,0.00033424,7]
[322451176,1713017443808,-500.0,0.00033424,7]
[322451177,1713017443817,-972.57,0.00033424,7]
[322451178,1713017443827,-594.16,0.00033424,7]
[322451179,1713017443837,-500.0,0.00033424,7]
[322451180,1713017443846,-500.0,0.00033424,7]
[322451181,1713017443856,-545.22,0.00033424,7]
[322451182,1713017443866,-500.0,0.00033424,7]
[322451183,1713017443875,-500.0,0.00033424,7]
[322451184,1713017443885,-771.2,0.00033424,7]
[322451185,1713017443894,-500.0,0.00033424,7]
[322451186,1713017443904,-25573.39,0.00033424,7]
[322451187,1713017443913,-500.0,0.00033424,7]
[322451188,1713017443923,-500.0,0.00033424,7]
[322451189,1713017443932,-961.86,0.00033424,7]
[322451190,1713017443942,-2055.79,0.00033424,7]
[322451191,1713017443951,-500.0,0.00033424,7]
[322451192,1713017444051,-864.5,0.00033424,7]
[322451193,1713017444061,-500.0,0.00033424,7]
[322451194,1713017444070,-500.0,0.00033424,7]
[322451195,1713017444080,-1241.84783223,0.00033653,4]
[322451196,1713017444089,-191.0,0.00033685,2]
[322451197,1713017444098,-549.05,0.00033697,7]
[322451198,1713017444108,-500.0,0.00033698,7]
[322451199,1713017444117,-247.71452935,0.00033698,7]
[322451200,1713017444127,-500.0,0.00033698,7]
[322451201,1713017444136,-500.0,0.00033698,7]
[322451202,1713017444146,-500.0,0.00033698,7]
[322451203,1713017444154,-505.65981487,0.00033698,7]
[322451204,1713017444164,-1154.66,0.00033698,2]
[322451205,1713017444173,-500.0,0.00033698,7]
[322451206,1713017444183,-661.36,0.00033698,7]
[322451207,1713017444192,-500.0,0.00033698,7]
[322451208,1713017444201,-503.4515301,0.00033698,7]
[322451209,1713017444210,-500.0,0.00033698,7]
[322451210,1713017444219,-2021.11,0.00033698,7]
[322451211,1713017444229,-843.24,0.00033698,7]
[322451212,1713017444238,-500.0,0.00033698,7]
[322451213,1713017444247,-500.0,0.00033698,7]
[322451214,1713017444257,-1596.73,0.00033698,7]
[322451215,1713017444267,-500.0,0.00033698,7]
[322451216,1713017444276,-500.0,0.00033698,7]
[322451217,1713017444285,-500.0,0.00033698,7]
[322451218,1713017444295,-500.0,0.00033698,7]
[322451219,1713017444307,-1057.74,0.00033698,7]
[322451220,1713017444316,-3316.03,0.00033698,7]
[322451221,1713017444326,-2437.75,0.00033698,7]
[322451222,1713017444335,-500.0,0.00033698,7]
[322451223,1713017444344,-553.02,0.00033698,7]
[322451224,1713017444353,-500.0,0.00033698,7]
[322451225,1713017444362,-500.0,0.00033698,7]
[322451226,1713017444371,-1110.7,0.00033698,7]
[322451227,1713017444380,-500.0,0.00033698,7]
[322451228,1713017444390,-826.99,0.00033698,7]
[322451229,1713017444403,-500.0,0.00033698,7]
[322451230,1713017444413,-151.0,0.00033698,2]
[322451231,1713017444423,-1763.8,0.00033698,7]
[322451232,1713017444432,-158.307594,0.00033698,2]
[322451233,1713017444442,-938.18,0.00033698,7]
[322451234,1713017444453,-158.307594,0.00033698,2]
[322451235,1713017444464,-155.450434,0.00033698,2]
[322451236,1713017444473,-500.0,0.00033698,7]
[322451237,1713017444483,-2856.21,0.00033698,7]
[322451238,1713017444493,-500.0,0.00033698,7]
[322451239,1713017444502,-500.0,0.00033698,7]
[322451240,1713017444512,-573.05,0.00033698,7]
[322451241,1713017444521,-4799.79,0.00033698,7]
[322451242,1713017444530,-1091.95,0.00033698,7]
[322451243,1713017444539,-500.0,0.00033698,7]
[322451244,1713017444549,-888.36,0.00033698,7]
[322451245,1713017444558,-569.09,0.00033698,7]
[322451246,1713017444567,-843.183774,0.00033698,2]
[322451247,1713017444577,-843.183774,0.00033698,2]
[322451248,1713017444586,-500.0,0.00033698,7]
[322451249,1713017444595,-500.0,0.00033698,7]
[322451250,1713017444604,-151.0,0.00033698,2]
[322451251,1713017444613,-1906.11,0.00033698,7]
[322451252,1713017444622,-500.0,0.00033698,7]
[322451253,1713017444631,-151.0,0.00033698,2]
[322451254,1713017444640,-500.0,0.00033698,7]
[322451255,1713017444649,-680.44,0.00033698,7]
[322451256,1713017444658,-624.86,0.00033698,7]
[322451257,1713017444667,-2166.57,0.00033698,7]
[322451258,1713017444677,-746.57,0.00033698,7]
[322451259,1713017444686,-151.0,0.00033698,2]
[322451260,1713017444695,-845.28,0.00033698,7]
[322451261,1713017444704,-1895.65,0.00033698,7]
[322451262,1713017444713,-2038.57,0.00033698,7]
[322451263,1713017444722,-837.75,0.00033698,7]
[322451264,1713017444732,-624.80297726,0.00033698,7]
[322451265,1713017444741,-680.09,0.00033698,7]
[322451266,1713017444750,-1656.21,0.00033698,7]
[322451267,1713017444759,-8395.95,0.00033698,7]
[322451268,1713017444768,-1046.63,0.00033698,7]
[322451269,1713017444777,-500.0,0.00033698,7]
[322451270,1713017444787,-500.0,0.00033698,7]
[322451271,1713017444796,-972.57,0.00033698,7]
[322451272,1713017444805,-594.16,0.00033698,7]
[322451273,1713017444814,-500.0,0.00033698,7]
[322451274,1713017444824,-500.0,0.00033698,7]
[322451275,1713017444833,-151.0,0.00033698,2]
[322451276,1713017444842,-545.22,0.00033698,7]
[322451277,1713017444851,-500.0,0.00033698,7]
[322451278,1713017444861,-500.0,0.00033698,7]
[322451279,1713017444870,-151.0,0.00033698,2]
[322451280,1713017444879,-771.2,0.00033698,7]
[322451281,1713017444889,-151.0,0.00033698,2]
[322451282,1713017444898,-12643.54659041,0.00033698,7]
[322451283,1713017444995,-12929.84340959,0.00033698,7]
[322451284,1713017445005,-500.0,0.00033698,7]
[322451285,1713017445014,-500.0,0.00033698,7]
[322451286,1713017445023,-961.86,0.00033698,7]
[322451287,1713017445033,-2055.79,0.00033698,7]
[322451288,1713017445048,-500.0,0.00033698,7]
[322451289,1713017445062,-864.5,0.00033698,7]
[322451290,1713017445075,-151.0,0.00033698,2]
[322451291,1713017445088,-500.0,0.00033698,7]
[322451292,1713017445099,-500.0,0.00033698,7]
[322451293,1713017445109,-1000.0,0.000338,8]
[322451294,1713017445123,-1000.0,0.000338,9]
[322451295,1713017445135,-549.05,0.00033971,7]
[322451296,1713017445147,-152.12,0.00033971,2]
[322451297,1713017445160,-500.0,0.00033972,7]
[322451298,1713017445173,-500.0,0.00033972,7]
[322451299,1713017445185,-500.0,0.00033972,7]
[322451300,1713017445197,-500.0,0.00033972,7]
[322451301,1713017445209,-1154.66,0.00033972,2]
[322451302,1713017445219,-500.0,0.00033972,7]
[322451303,1713017445231,-661.36,0.00033972,7]
[322451304,1713017445243,-500.0,0.00033972,7]
[322451305,1713017445254,-500.0,0.00033972,7]
[322451306,1713017445266,-810.87028229,0.00033972,7]
[322451307,1713017445282,-1210.23971771,0.00033972,7]
[322451308,1713017445294,-843.24,0.00033972,7]
[322451309,1713017445307,-500.0,0.00033972,7]
[322451310,1713017445319,-1596.73,0.00033972,7]
[322451311,1713017445329,-500.0,0.00033972,7]
[322451312,1713017445339,-500.0,0.00033972,7]
[322451313,1713017445352,-151.0,0.00033972,2]
[322451314,1713017445366,-500.0,0.00033972,7]
[322451315,1713017445378,-500.0,0.00033972,7]
[322451316,1713017445393,-151.0,0.00033972,2]
[322451317,1713017445404,-1057.74,0.00033972,7]
[322451318,1713017445419,-1513.05424448,0.00033972,7]
[322451319,1713017445691,-500.0,0.00032876,7]
[322451320,1713017445702,-500.0,0.00032876,2]
[322451321,1713017445713,-500.0,0.0003315,7]
[322451322,1713017445724,-500.0,0.0003315,7]
[322451323,1713017445735,-500.0,0.0003315,2]
[322451324,1713017445746,-500.0,0.00033424,7]
[322451325,1713017445757,-504.2554637,0.00033424,7]
[322451327,1713017445770,-500.0,0.00033424,2]
[322451328,1713017445781,-500.0,0.00033698,7]
[322451329,1713017445792,-39.949065,0.00033698,2]
[322451356,1713017475509,200.0,0.00028,3]
[322451463,1713018638572,-242.99498652,0.00025898,2]
[322451465,1713018638581,-300.0,0.00025898,2]
[322451467,1713018638590,-6934.37264385,0.00025899,2]
[322451469,1713018638599,-2719.25880624,0.000259,2]
[322451471,1713018638609,-167.521731,0.00027397,2]
[322451473,1713018638619,-222.398593,0.00027611,2]
[322451474,1713018638628,-754.74892087,0.00028,2]
[322451476,1713018638638,-250.0,0.00028349,2]
[322451479,1713018638647,-420.0,0.00028488,2]
[322451480,1713018638656,-7068.92609196,0.00029799,2]
[322451490,1713018638951,-17831.07390804,0.00029799,2]
[322451492,1713018638962,-164.36260772,0.00030052,4]
[322451493,1713018638971,-2719.25880624,0.000309,2]
[322451494,1713018638981,-587.0,0.00031337,2]
[322451495,1713018638990,-151.00604024,0.00031802,30]
[322451496,1713018638999,-151.00604024,0.00032451,7]
[322451497,1713018639009,-171.88794,0.00032655,2]
[322451498,1713018639018,-288.98295342,0.00032874,4]
[322451499,1713018639027,-173.20392627,0.00032875,4]
[322451500,1713018639036,-500.0,0.00032875,2]
[322451501,1713018639045,-433.02535964,0.00032875,2]
[322451502,1713018639054,-500.0,0.00032875,2]
[322451503,1713018639065,-500.0,0.00032875,2]
[322451504,1713018639074,-500.0,0.00032875,2]
[322451505,1713018639083,-500.0,0.00032875,2]
[322451506,1713018639093,-419.15832063,0.00032875,2]
[322451507,1713018639102,-500.0,0.00032875,2]
[322451508,1713018639111,-500.0,0.00032875,2]
[322451509,1713018639120,-500.0,0.00032875,2]
[322451510,1713018639129,-500.0,0.00032875,2]
[322451511,1713018639138,-500.0,0.00032875,2]
[322451512,1713018639147,-500.0,0.00032875,2]
[322451513,1713018639157,-78899.36708575,0.00032876,5]
[322451514,1713018639166,-500.0,0.00032876,7]
[322451515,1713018639175,-419.90088758,0.00032876,7]
[322451516,1713018639184,-500.0,0.00032876,7]
[322451517,1713018639193,-500.0,0.00032876,7]
[322451518,1713018639202,-500.0,0.00032876,7]
[322451519,1713018639212,-500.0,0.00032876,7]
[322451520,1713018639221,-504.05755057,0.00032876,7]
[322451521,1713018639230,-500.0,0.00032876,7]
[322451522,1713018639239,-500.0,0.00032876,7]
[322451523,1713018639249,-500.0,0.00032876,7]
[322451525,1713018639258,-500.0,0.00032876,7]
[322451526,1713018639267,-317.31078061,0.00032876,7]
[322451527,1713018639276,-500.0,0.00032876,7]
[322451528,1713018639285,-500.0,0.00032876,7]
[322451529,1713018639294,-500.0,0.00032876,7]
[322451530,1713018639303,-577.1,0.00032876,7]
[322451531,1713018639314,-502.56745271,0.00032876,7]
[322451532,1713018639323,-500.0,0.00032876,7]
[322451533,1713018639332,-500.0,0.00032876,7]
[322451534,1713018639341,-506.7252745,0.00032876,7]
[322451535,1713018639350,-565.72365812,0.00032876,7]
[322451536,1713018639359,-500.0,0.00032876,7]
[322451537,1713018639368,-205.92793265,0.00032876,7]
[322451538,1713018639377,-500.0,0.00032876,7]
[322451539,1713018639386,-500.0,0.00032876,7]
[322451540,1713018639395,-500.0,0.00032876,7]
[322451541,1713018639404,-500.0,0.00032876,7]
[322451542,1713018639413,-342.39120222,0.00032876,7]
[322451543,1713018639422,-500.0,0.00032876,7]
[322451544,1713018639431,-500.0,0.00032876,7]
[322451545,1713018639441,-500.0,0.00032876,7]
[322451546,1713018639450,-300.0,0.00032876,7]
[322451547,1713018639459,-506.21965015,0.00032876,7]
[322451548,1713018639468,-523.11839054,0.00032876,7]
[322451549,1713018639478,-1379.6,0.00032876,7]
[322451550,1713018639487,-504.6646191,0.00032876,7]
[322451551,1713018639495,-500.0,0.00032876,7]
[322451552,1713018639505,-500.0,0.00032876,7]
[322451553,1713018639514,-500.0,0.00032876,7]
[322451554,1713018639523,-179.25745863,0.00032876,7]
[322451556,1713018639533,-293.0,0.00032876,7]
[322451557,1713018639543,-500.0,0.00032876,7]
[322451558,1713018639552,-500.0,0.00032876,7]
[322451559,1713018639562,-500.0,0.00032876,7]
[322451560,1713018639571,-501.19133556,0.00032876,7]
[322451561,1713018639580,-500.0,0.00032876,7]
[322451562,1713018639590,-500.0,0.00032876,7]
[322451563,1713018639600,-500.0,0.00032876,7]
[322451564,1713018639609,-535.21305459,0.00032876,7]
[322451565,1713018639619,-500.0,0.00032876,7]
[322451566,1713018639628,-516.49275527,0.00032876,7]
[322451567,1713018639638,-500.0,0.00032876,7]
[322451568,1713018639647,-500.0,0.00032876,7]
[322451569,1713018639657,-500.0,0.00032876,7]
[322451570,1713018639666,-564.38,0.00032876,7]
[322451571,1713018639675,-564.38,0.00032876,7]
[322451572,1713018639685,-564.38,0.00032876,7]
[322451573,1713018639694,-720.78,0.00032876,7]
[322451574,1713018639705,-564.38,0.00032876,7]
[322451575,1713018639714,-564.38,0.00032876,7]
[322451576,1713018639724,-564.38,0.00032876,7]
[322451577,1713018639733,-564.38,0.00032876,7]
[322451578,1713018639742,-564.38,0.00032876,7]
[322451579,1713018639882,-564.38,0.00032876,7]
[322451580,1713018639891,-564.38,0.00032876,7]
[322451581,1713018639901,-564.38,0.00032876,7]
[322451582,1713018639911,-500.0,0.00032876,7]
[322451583,1713018639921,-500.0,0.00032876,7]
[322451584,1713018639933,-500.0,0.00032876,7]
[322451585,1713018639943,-500.0,0.00032876,7]
[322451586,1713018639952,-499.68616725,0.00032876,7]
[322451588,1713018639962,-502.45562532,0.00032876,7]
[322451589,1713018639972,-500.0,0.00032876,7]
[322451590,1713018639982,-500.0,0.00032876,7]
[322451591,1713018639991,-504.55771292,0.00032876,7]
[322451592,1713018640001,-1828.83,0.00032876,7]
[322451593,1713018640010,-759.96,0.00032876,7]
[322451595,1713018640019,-500.0,0.00032876,7]
[322451596,1713018640028,-500.0,0.00032876,7]
[322451598,1713018640038,-500.0,0.00032876,7]
[322451600,1713018640047,-272.3842325,0.00032876,7]
[322451602,1713018640056,-500.0,0.00032876,7]
[322451604,1713018640066,-500.0,0.00032876,7]
[322451606,1713018640075,-500.0,0.00032876,7]
[322451608,1713018640084,-500.0,0.00032876,7]
[322451610,1713018640094,-500.0,0.00032876,7]
[322451612,1713018640103,-500.0,0.00032876,7]
[322451614,1713018640112,-500.0,0.00032876,7]
[322451615,1713018640122,-503.55964822,0.00032876,7]
[322451616,1713018640131,-500.0,0.00032876,7]
[322451617,1713018640141,-500.0,0.00032876,7]
[322451618,1713018640151,-500.0,0.00032876,7]
[322451619,1713018640161,-500.0,0.00032876,7]
[322451620,1713018640171,-500.0,0.00032876,7]
[322451621,1713018640180,-508.45342757,0.00032876,7]
[322451622,1713018640192,-500.0,0.00032876,7]
[322451623,1713018640202,-500.0,0.00032876,7]
[322451624,1713018640211,-500.0,0.00032876,7]
[322451625,1713018640220,-505.81425759,0.00032876,7]
[322451626,1713018640229,-500.0,0.00032876,7]
[322451627,1713018640239,-600.75248345,0.00032876,7]
[322451628,1713018640248,-575.3582665,0.00032876,7]
[322451629,1713018640257,-500.0,0.00032876,7]
[322451630,1713018640267,-500.0,0.00032876,7]
[322451631,1713018640277,-193.55305598,0.00032876,7]
[322451632,1713018640286,-501.56934518,0.00032876,7]
[322451633,1713018640296,-500.0,0.00032876,7]
[322451635,1713018640305,-269.97863865,0.00032876,7]
[322451636,1713018640315,-500.0,0.00032876,7]
[322451637,1713018640325,-500.0,0.00032876,7]
[322451638,1713018640335,-173.17724066,0.00032876,7]
[322451639,1713018640346,-500.0,0.00032876,7]
[322451640,1713018640356,-500.0,0.00032876,7]
[322451641,1713018640366,-500.0,0.00032876,7]
[322451642,1713018640376,-500.0,0.00032876,7]
[322451643,1713018640385,-500.0,0.00032876,7]
[322451644,1713018640394,-842.21,0.00032876,7]
[322451645,1713018640404,-500.0,0.00032876,7]
[322451646,1713018640414,-500.0,0.00032876,7]
[322451647,1713018640423,-942.93,0.00032876,7]
[322451648,1713018640432,-500.0,0.00032876,7]
[322451649,1713018640441,-500.0,0.00032876,7]
[322451650,1713018640451,-500.0,0.00032876,7]
[322451651,1713018640460,-500.0,0.00032876,7]
[322451652,1713018640469,-500.0,0.00032876,7]
[322451653,1713018640479,-3103.82,0.00032876,7]
[322451654,1713018640489,-500.0,0.00032876,7]
[322451655,1713018640498,-500.0,0.00032876,7]
[322451656,1713018640507,-500.0,0.00032876,7]
[322451658,1713018640516,-2372.82,0.00032876,7]
[322451659,1713018640525,-500.0,0.00032876,7]
[322451660,1713018640534,-500.0,0.00032876,7]
[322451661,1713018640544,-500.0,0.00032876,7]
[322451662,1713018640553,-500.0,0.00032876,7]
[322451663,1713018640563,-500.0,0.00032876,7]
[322451664,1713018640572,-971.77,0.00032876,7]
[322451665,1713018640581,-502.86,0.00032876,7]
[322451666,1713018640590,-500.0,0.00032876,7]
[322451667,1713018640600,-1018.81,0.00032876,7]
[322451668,1713018640609,-500.0,0.00032876,7]
[322451669,1713018640618,-500.0,0.00032876,7]
[322451670,1713018640628,-1674.82,0.00032876,7]
[322451671,1713018640637,-500.0,0.00032876,7]
[322451672,1713018640647,-500.0,0.00032876,7]
[322451673,1713018640657,-500.0,0.00032876,7]
[322451674,1713018640666,-844.85,0.00032876,7]
[322451675,1713018640675,-500.0,0.00032876,7]
[322451676,1713018640685,-1545.15,0.00032876,7]
[322451677,1713018640695,-500.0,0.00032876,7]
[322451678,1713018640704,-500.0,0.00032876,7]
[322451679,1713018640713,-500.0,0.00032876,7]
[322451680,1713018640721,-500.0,0.00032876,7]
[322451681,1713018640730,-1896.36,0.00032876,7]
[322451682,1713018640739,-505.38,0.00032876,7]
[322451683,1713018640747,-500.0,0.00032876,7]
[322451684,1713018640756,-834.22,0.00032876,7]
[322451685,1713018640765,-500.0,0.00032876,7]
[322451686,1713018640774,-500.0,0.00032876,7]
[322451687,1713018640785,-633.04,0.00032876,7]
[322451688,1713018640795,-500.0,0.00032876,7]
[322451689,1713018640804,-4218.66,0.00032876,7]
[322451690,1713018640813,-500.0,0.00032876,7]
[322451691,1713018640824,-509.49711825,0.00032876,7]
[322451692,1713018640833,-553.52,0.00032876,7]
[322451693,1713018640841,-500.0,0.00032876,7]
[322451694,1713018640850,-500.0,0.00032876,7]
[322451695,1713018640860,-500.0,0.00032876,7]
[322451696,1713018640868,-1907.78,0.00032876,7]
[322451697,1713018640877,-500.0,0.00032876,7]
[322451698,1713018640886,-504.31,0.00032876,7]
[322451699,1713018640895,-500.0,0.00032876,7]
[322451700,1713018640904,-500.0,0.00032876,7]
[322451701,1713018640915,-500.0,0.00032876,7]
[322451702,1713018640925,-500.0,0.00032876,7]
[322451703,1713018640935,-628.31,0.00032876,7]
[322451704,1713018640944,-500.0,0.00032876,7]
[322451705,1713018640955,-500.0,0.00032876,7]
[322451706,1713018640966,-221.02911687,0.00032876,7]
[322451707,1713018640976,-500.0,0.00032876,7]
[322451708,1713018640986,-500.0,0.00032876,7]
[322451709,1713018640996,-500.0,0.00032876,7]
[322451710,1713018641006,-500.0,0.00032876,7]
[322451711,1713018641015,-500.0,0.00032876,7]
[322451712,1713018641025,-219.28494068,0.00032876,7]
[322451713,1713018641035,-500.0,0.00032876,7]
[322451714,1713018641047,-500.0,0.00032876,7]
[322451715,1713018641057,-500.0,0.00032876,7]
[322451716,1713018641067,-500.0,0.00032876,7]
[322451717,1713018641076,-500.0,0.00032876,7]
[322451718,1713018641085,-697.26,0.00032876,7]
[322451719,1713018641094,-212.80795983,0.00032876,7]
[322451720,1713018641104,-500.0,0.00032876,7]
[322451721,1713018641114,-500.0,0.00032876,7]
[322451722,1713018641124,-789.19,0.00032876,7]
[322451723,1713018641134,-417.69517336,0.00032876,7]
[322451724,1713018641144,-322.96051541,0.00032876,7]
[322451725,1713018641154,-784.96,0.00032876,7]
[322451726,1713018641164,-507.97,0.00032876,7]
[322451727,1713018641174,-500.0,0.00032876,7]
[322451728,1713018641184,-1684.56,0.00032876,7]
[322451729,1713018641195,-381.97699144,0.00032876,7]
[322451730,1713018641205,-502.85893924,0.00032876,7]
[322451731,1713018641215,-500.0,0.00032876,7]
[322451732,1713018641228,-500.0,0.00032876,7]
[322451733,1713018641239,-500.0,0.00032876,7]
[322451734,1713018641248,-413.52960305,0.00032876,7]
[322451735,1713018641258,-500.0,0.00032876,7]
[322451736,1713018641268,-500.0,0.00032876,7]
[322451737,1713018641277,-500.0,0.00032876,7]
[322451738,1713018641287,-500.0,0.00032876,7]
[322451739,1713018641297,-500.0,0.00032876,7]
[322451740,1713018641306,-1472.55,0.00032876,7]
[322451741,1713018641317,-500.0,0.00032876,7]
[322451742,1713018641327,-7337.9,0.00032876,7]
[322451743,1713018641338,-500.0,0.00032876,7]
[322451744,1713018641348,-500.0,0.00032876,7]
[322451745,1713018641357,-500.0,0.00032876,7]
[322451746,1713018641366,-500.0,0.00032876,7]
[322451747,1713018641376,-930.39,0.00032876,7]
[322451748,1713018641385,-500.0,0.00032876,7]
[322451749,1713018641395,-500.0,0.00032876,7]
[322451750,1713018641404,-546.34,0.00032876,7]
[322451751,1713018641413,-617.97867479,0.00032876,7]
[322451752,1713018641423,-22475.44,0.00032876,7]
[322451753,1713018641432,-904.38,0.00032876,7]
[322451754,1713018641441,-500.0,0.00032876,7]
[322451755,1713018641451,-398.44098135,0.00032876,7]
[322451756,1713018641460,-500.0,0.00032876,7]
[322451757,1713018641469,-717.07,0.00032876,7]
[322451758,1713018641480,-500.0,0.00032876,7]
[322451759,1713018641490,-500.0,0.00032876,7]
[322451760,1713018641502,-507.12892981,0.00032876,7]
[322451761,1713018641513,-500.0,0.00032876,7]
[322451762,1713018641524,-500.0,0.00032876,7]
[322451763,1713018641535,-1911.62,0.00032876,7]
[322451764,1713018641545,-500.0,0.00032876,7]
[322451765,1713018641554,-500.0,0.00032876,7]
[322451766,1713018641567,-500.0,0.00032876,7]
[322451767,1713018641578,-500.0,0.00032876,7]
[322451768,1713018641589,-501.09936948,0.00032876,7]
[322451769,1713018641598,-500.0,0.00032876,7]
[322451770,1713018641607,-500.0,0.00032876,7]
[322451771,1713018641616,-500.0,0.00032876,7]
[322451772,1713018641625,-500.0,0.00032876,7]
[322451773,1713018641635,-500.0,0.00032876,7]
[322451774,1713018641644,-500.0,0.00032876,7]
[322451775,1713018641653,-2777.32,0.00032876,7]
[322451776,1713018641662,-500.0,0.00032876,7]
[322451777,1713018641671,-1036.23,0.00032876,2]
[322451778,1713018641681,-701.47583863,0.00032876,7]
[322451811,1713019345672,170.25621864,0.00026655,3]
[322451814,1713019441161,16434.4123031,0.00024903,2]
[322451817,1713019451885,2344.0873008,0.00024979,2]
[322451820,1713019455730,2704.905928,0.00024902,2]
[322451823,1713019469504,250.0,0.00024902,2]
[322451826,1713019505800,1270.2821755,0.00024902,2]
[322451827,1713019516358,16060.56767013,0.00024902,2]
[322451828,1713019517633,19152.42794646,0.00024902,2]